bitfinex-derivatives/quotes_BTCF0:USTF0_20250602
["timestamp","ask_amount","ask_price","bid_price","bid_amount"]
[1748860655449,1.10413288,104480.0,104470.0,0.55878371]
[1748860655739,1.26452907,104480.0,104470.0,0.00034371]
[1748860656039,1.36024507,104480.0,104470.0,0.00034371]
[1748860656340,1.19984888,104480.0,104470.0,0.00034371]
[1748860658442,1.36024507,104480.0,104470.0,1e-08]
[1748860658737,1.36024507,104480.0,104460.0,0.57275]
[1748860658738,0.1913536,104470.0,104460.0,0.57275]
[1748860658943,1.03639779,104470.0,104460.0,0.57275]
[1748860659842,1.03839779,104470.0,104460.0,0.57275]
[1748860660144,1.04039779,104470.0,104460.0,0.57275]
[1748860660636,1.04039779,104470.0,104460.0,0.01435]
[1748860660831,1.04039779,104470.0,104460.0,0.57275]
[1748860661027,0.83214979,104470.0,104460.0,0.57275]
[1748860661642,0.83214979,104470.0,104460.0,0.57271]
[1748860662140,0.83214979,104470.0,104460.0,0.55836]
[1748860662527,1.12893966,104470.0,104460.0,0.55836]
[1748860663140,0.1913719,104460.0,104450.0,0.19153301]
[1748860663338,0.99245878,104460.0,104450.0,0.55836]
[1748860663534,0.99245878,104460.0,104450.0,0.7497502]
[1748860664344,0.78426809,104460.0,104450.0,0.7497502]
[1748860664647,0.78426809,104460.0,104450.0,0.1913902]
[1748860664935,0.78426809,104460.0,104450.0,0.7497502]
[1748860664936,0.93297323,104460.0,104450.0,0.7497502]
[1748860666036,0.93397323,104460.0,104450.0,0.7497502]
[1748860667743,0.93397323,104460.0,104450.0,0.7858502]
[1748860668043,0.78526809,104460.0,104450.0,0.7858502]
[1748860668244,0.77352534,104460.0,104450.0,0.7858502]
[1748860668431,0.77352534,104460.0,104450.0,0.94624639]
[1748860668629,0.77352534,104460.0,104450.0,0.8255502]
[1748860669243,0.93392153,104460.0,104450.0,0.59446]
[1748860669544,0.93392153,104460.0,104450.0,0.0361]
[1748860669746,0.93392153,104460.0,104450.0,0.59446]
[1748860669939,0.93392153,104460.0,104450.0,0.14426]
[1748860670133,0.1913902,104450.0,104440.0,0.1318983]
[1748860670345,0.82258639,104450.0,104440.0,0.5820983]
[1748860670549,0.82258639,104450.0,104440.0,0.56081018]
[1748860670748,1.03077708,104450.0,104440.0,0.56061018]
[1748860670950,1.03077708,104450.0,104440.0,0.56081018]
[1748860671645,1.13077708,104450.0,104440.0,0.56077018]
[1748860671845,1.03077708,104450.0,104440.0,0.56077018]
[1748860672046,1.03077708,104450.0,104440.0,0.56277018]
[1748860672247,1.03077708,104450.0,104440.0,0.56377018]
[1748860672642,1.03077708,104450.0,104440.0,0.587974]
[1748860672842,1.03077708,104450.0,104440.0,0.137814]
[1748860673037,1.03077708,104450.0,104440.0,0.587974]
[1748860673038,1.13077708,104450.0,104440.0,0.587974]
[1748860673743,1.03077708,104450.0,104440.0,0.587974]
[1748860675851,1.03077708,104450.0,104440.0,0.624074]
[1748860676351,0.76038089,104450.0,104440.0,0.8154826]
[1748860676548,0.56899069,104450.0,104440.0,1.01187879]
[1748860676853,0.14859069,104450.0,104440.0,1.26187879]
[1748860677054,0.55231561,104460.0,104450.0,0.1913902]
[1748860677353,0.55231561,104460.0,104450.0,0.35178639]
[1748860677553,0.55231561,104460.0,104450.0,0.37599021]
[1748860678352,0.19151561,104460.0,104450.0,0.37599021]
[1748860678651,0.55231561,104460.0,104450.0,0.37599021]
[1748860679053,0.55331561,104460.0,104450.0,0.37599021]
[1748860680255,0.55331561,104460.0,104450.0,0.42719021]
[1748860681052,0.55331561,104460.0,104450.0,0.42729021]
[1748860684557,0.19251561,104460.0,104450.0,0.42729021]
[1748860684756,0.55331561,104460.0,104450.0,0.42729021]
[1748860685652,0.59211561,104460.0,104450.0,0.42729021]
[1748860685856,0.59211561,104460.0,104450.0,0.26689402]
[1748860686756,0.59211561,104460.0,104450.0,0.71689402]
[1748860687558,0.00114371,104460.0,104450.0,1.23809021]
[1748860687758,0.14872032,104480.0,104470.0,0.1913536]
[1748860687759,0.4754,104480.0,104470.0,0.1913536]
[1748860687961,0.66635781,104480.0,104470.0,0.90978979]
[1748860688254,0.66635781,104480.0,104470.0,0.82489742]
[1748860689255,0.66835781,104480.0,104470.0,0.82489742]
[1748860689453,0.67035781,104480.0,104470.0,0.82489742]
[1748860690256,0.67035781,104480.0,104470.0,0.21555742]
[1748860690447,0.830754,104480.0,104470.0,0.32359742]
[1748860690646,0.830754,104480.0,104470.0,0.77355742]
[1748860691049,0.830754,104480.0,104470.0,0.02440382]
[1748860691252,1.29425121,104480.0,104460.0,0.10818371]
[1748860691550,0.93507011,104470.0,104460.0,0.10818371]
[1748860691745,0.93507011,104470.0,104460.0,0.10838371]
[1748860692354,1.03507011,104470.0,104460.0,0.10838371]
[1748860692554,1.03507011,104470.0,104460.0,0.10818371]
[1748860692555,0.88634979,104470.0,104460.0,0.10818371]
[1748860692758,1.0944714,104470.0,104460.0,0.10838371]
[1748860692965,0.9944714,104470.0,104460.0,0.10838371]
[1748860693467,0.85014979,104470.0,104460.0,0.10838371]
[1748860694261,0.75014979,104470.0,104460.0,0.10838371]
[1748860694458,0.5897536,104470.0,104460.0,0.19171561]
[1748860694659,0.73813731,104470.0,104460.0,0.74967561]
[1748860695259,0.5897536,104470.0,104460.0,0.74967561]
[1748860695666,0.5917536,104470.0,104460.0,0.74967561]
[1748860695963,0.5937536,104470.0,104460.0,0.74967561]
[1748860697560,0.75414979,104470.0,104460.0,0.19171561]
[1748860697760,0.75414979,104470.0,104460.0,0.74967561]
[1748860697961,0.75414979,104470.0,104460.0,0.00034371]
[1748860698262,0.75414979,104470.0,104460.0,0.10838371]
[1748860698263,0.9025335,104470.0,104460.0,0.10838371]
[1748860698469,0.9025335,104470.0,104460.0,0.55830371]
[1748860698656,0.9025335,104470.0,104460.0,0.10818371]
[1748860698859,0.9025335,104470.0,104460.0,0.10838371]
[1748860699061,0.75414979,104470.0,104460.0,0.10838371]
[1748860700458,0.90258364,104470.0,104460.0,0.10838371]
[1748860701758,0.75414979,104470.0,104460.0,0.29975561]
[1748860701958,0.9622714,104470.0,104460.0,0.29975561]
[1748860702566,0.80187521,104470.0,104460.0,0.29975561]
[1748860703162,0.80187521,104470.0,104460.0,0.28419058]
[1748860703364,0.5937536,104470.0,104460.0,0.28419058]
[1748860703568,0.6299536,104470.0,104460.0,0.28419058]
[1748860703769,0.79034979,104470.0,104460.0,0.28419058]
[1748860709368,0.99844209,104470.0,104460.0,0.28419058]
[1748860712462,0.63764209,104470.0,104460.0,0.28419058]
[1748860712669,1.35924209,104470.0,104460.0,0.28419058]
[1748860713469,1.15114979,104470.0,104460.0,0.28419058]
[1748860714072,1.13939893,104470.0,104460.0,0.28419058]
[1748860716371,1.29979512,104470.0,104460.0,0.73399058]
[1748860716571,1.29979512,104470.0,104460.0,0.73419058]
[1748860717274,1.15114979,104470.0,104460.0,0.73419058]
[1748860718879,0.9907536,104470.0,104460.0,0.73419058]
[1748860719271,1.1988459,104470.0,104460.0,0.73419058]
[1748860720580,0.6466923,104470.0,104460.0,0.96938677]
[1748860720780,0.004,104470.0,104460.0,1.33018677]
[1748860720967,0.15290786,104470.0,104460.0,1.33018677]
[1748860721173,0.004,104470.0,104460.0,1.33018677]
[1748860721376,0.004,104470.0,104460.0,1.67591077]
[1748860721876,0.002,104470.0,104460.0,1.67591077]
[1748860722479,0.92235957,104490.0,104480.0,0.1913353]
[1748860722674,0.92235957,104490.0,104480.0,0.7490153]
[1748860722875,0.92235957,104490.0,104480.0,0.7996153]
[1748860723994,0.92535957,104490.0,104480.0,0.7996153]
[1748860724599,0.92835957,104490.0,104480.0,0.7996153]
[1748860725802,0.92535957,104490.0,104480.0,0.7996153]
[1748860725990,0.92235957,104490.0,104480.0,0.7996153]
[1748860726997,0.92235957,104490.0,104480.0,0.80757887]
[1748860729495,0.77345171,104490.0,104480.0,0.80757887]
[1748860730191,0.77345171,104490.0,104480.0,0.82192887]
[1748860731993,0.77345171,104490.0,104480.0,0.80902887]
[1748860732295,0.92235957,104490.0,104480.0,0.80902887]
[1748860732894,0.92235957,104490.0,104480.0,0.80882887]
[1748860734495,0.87452867,104490.0,104480.0,0.80882887]
[1748860735401,0.87452867,104490.0,104480.0,0.95543147]
[1748860735602,0.58755157,104490.0,104480.0,0.95923147]
[1748860735793,0.43864371,104490.0,104480.0,0.97413147]
[1748860737800,0.62996141,104490.0,104480.0,0.97413147]
[1748860739101,0.62996141,104490.0,104480.0,0.95543147]
[1748860739306,0.62996141,104490.0,104480.0,0.39795147]
[1748860739501,0.77656401,104490.0,104480.0,0.77100887]
[1748860739899,0.77656401,104490.0,104480.0,0.77120887]
[1748860740298,0.62996141,104490.0,104480.0,0.77120887]
[1748860741699,0.63396141,104490.0,104480.0,0.77120887]
[1748860745908,0.63396141,104490.0,104480.0,0.78554887]
[1748860746106,0.78056401,104490.0,104480.0,0.22818887]
[1748860746306,0.78056401,104490.0,104480.0,0.33590887]
[1748860746501,0.78056401,104490.0,104480.0,0.78530887]
[1748860746701,0.78056401,104490.0,104480.0,0.78510887]
[1748860746896,0.78056401,104490.0,104480.0,0.78530887]
[1748860747602,0.63396141,104490.0,104480.0,0.78530887]
[1748860748503,0.78286927,104490.0,104480.0,0.78530887]
[1748860752105,0.42206927,104490.0,104480.0,0.78530887]
[1748860752300,1.14366927,104490.0,104480.0,0.78530887]
[1748860753603,0.99476141,104490.0,104480.0,0.78530887]
[1748860753803,0.48125371,104490.0,104480.0,0.78530887]
[1748860754009,1.20285371,104490.0,104480.0,0.78530887]
[1748860756910,1.34945631,104490.0,104480.0,0.78518887]
[1748860757116,1.34945631,104490.0,104480.0,0.78498887]
[1748860757302,1.34945631,104490.0,104480.0,0.78518887]
[1748860757609,1.20285371,104490.0,104480.0,0.78518887]
[1748860757911,1.20285371,104490.0,104480.0,0.93179147]
[1748860758313,1.20285371,104490.0,104480.0,0.78518887]
[1748860759917,1.20285371,104490.0,104480.0,0.33590887]
[1748860760211,1.20285371,104490.0,104480.0,0.78514887]
[1748860761898,1.01153601,104490.0,104480.0,0.93175147]
[1748860762103,0.99476141,104490.0,104480.0,0.96275147]
[1748860762603,0.99476141,104490.0,104480.0,0.93175147]
[1748860762803,0.99476141,104490.0,104480.0,0.78514887]
[1748860763509,1.28850501,104490.0,104480.0,0.78514887]
[1748860763708,1.28850501,104490.0,104480.0,0.22818887]
[1748860763910,1.28650501,104490.0,104480.0,0.78514887]
[1748860764212,1.28650501,104490.0,104480.0,0.78494887]
[1748860764406,1.28650501,104490.0,104480.0,0.78514887]
[1748860765017,1.29050501,104490.0,104480.0,0.78514887]
[1748860766419,1.29050501,104490.0,104480.0,0.78510887]
[1748860766614,1.14136401,104490.0,104480.0,0.78490887]
[1748860766918,1.14136401,104490.0,104480.0,0.78510887]
[1748860767411,1.29051909,104490.0,104480.0,0.78510887]
[1748860767801,0.95259879,104490.0,104480.0,0.78510887]
[1748860768113,1.14391649,104490.0,104480.0,0.93171147]
[1748860768819,1.14391649,104490.0,104480.0,0.78506887]
[1748860769521,1.14191649,104490.0,104480.0,0.78506887]
[1748860770019,1.13991649,104490.0,104480.0,0.78506887]
[1748860770209,1.14191649,104490.0,104480.0,0.78506887]
[1748860770813,1.14391649,104490.0,104480.0,0.78506887]
[1748860771014,1.14391649,104490.0,104480.0,0.93167147]
[1748860774311,1.14391649,104490.0,104480.0,0.78506887]
[1748860777124,1.14136401,104490.0,104480.0,0.22818887]
[1748860777326,1.34945631,104490.0,104480.0,0.78482887]
[1748860777509,1.34945631,104490.0,104480.0,0.78462887]
[1748860777915,1.34945631,104490.0,104480.0,0.78482887]
[1748860779213,1.34945631,104490.0,104480.0,0.22818887]
[1748860779414,1.34945631,104490.0,104480.0,0.78478887]
[1748860779919,1.34945631,104490.0,104480.0,0.77043887]
[1748860780123,1.34945631,104490.0,104480.0,0.21363887]
[1748860780325,1.34945631,104490.0,104480.0,0.02250357]
[1748860780533,1.34945631,104490.0,104480.0,0.77023957]
[1748860780912,1.34945631,104490.0,104480.0,0.77043957]
[1748860781712,1.34945631,104490.0,104480.0,0.21383957]
[1748860781917,1.34945631,104490.0,104480.0,0.77039957]
[1748860782125,1.34945631,104490.0,104480.0,0.21383957]
[1748860782325,1.34945631,104490.0,104480.0,0.77039957]
[1748860785222,1.20285371,104490.0,104480.0,0.77039957]
[1748860788729,0.99476141,104490.0,104480.0,0.77039957]
[1748860791230,1.14377468,104490.0,104480.0,0.77039957]
[1748860792531,0.99476141,104490.0,104480.0,0.77039957]
[1748860793231,1.14377469,104490.0,104480.0,0.77039957]
[1748860793531,0.99476141,104490.0,104480.0,0.77039957]
[1748860793928,1.20285371,104490.0,104480.0,0.77039957]
[1748860795341,1.20285371,104490.0,104480.0,0.77027957]
[1748860798636,0.99476141,104490.0,104480.0,0.77027957]
[1748860799228,0.99476141,104490.0,104480.0,0.91688217]
[1748860799434,0.99476141,104490.0,104480.0,0.94788217]
[1748860800436,1.20332635,104490.0,104480.0,0.80127957]
[1748860800849,1.01200865,104490.0,104480.0,0.94788217]
[1748860801026,1.20332635,104490.0,104480.0,0.94788217]
[1748860801232,1.20332635,104490.0,104480.0,0.95388217]
[1748860802041,1.20132635,104490.0,104480.0,0.95388217]
[1748860802246,1.19932635,104490.0,104480.0,0.95388217]
[1748860803637,1.34821388,104490.0,104480.0,0.95388217]
[1748860803837,1.13964894,104490.0,104480.0,0.95388217]
[1748860807947,0.94833124,104490.0,104480.0,0.95388217]
[1748860808147,1.13964884,104490.0,104480.0,0.95388217]
[1748860809150,1.13964894,104490.0,104480.0,0.80727957]
[1748860809446,1.13964894,104490.0,104480.0,0.95388217]
[1748860810351,0.79944371,104490.0,104480.0,0.95388217]
[1748860810550,0.79944371,104490.0,104480.0,0.95368217]
[1748860811351,0.99076141,104490.0,104480.0,0.95368217]
[1748860813043,0.94833124,104490.0,104480.0,0.95368217]
[1748860813747,0.94833124,104490.0,104480.0,0.94768217]
[1748860815147,0.94833124,104490.0,104480.0,0.95618217]
[1748860816550,0.79944371,104490.0,104480.0,0.95618217]
[1748860818053,0.79944371,104490.0,104480.0,0.97053217]
[1748860819144,0.79944371,104490.0,104480.0,1.11710987]
[1748860822951,0.79944371,104490.0,104480.0,1.11666987]
[1748860823151,0.79944371,104490.0,104480.0,1.11766987]
[1748860823349,0.79944371,104490.0,104480.0,1.11866987]
[1748860823548,0.79944371,104490.0,104480.0,0.63072987]
[1748860823751,0.79944371,104490.0,104480.0,0.93253972]
[1748860823752,1.13735156,104490.0,104480.0,0.93253972]
[1748860823957,1.13735156,104490.0,104480.0,0.33734957]
[1748860824265,1.13735156,104490.0,104480.0,0.78594957]
[1748860824755,1.13735156,104490.0,104480.0,0.93253972]
[1748860825153,1.13964894,104490.0,104480.0,0.93258006]
[1748860825750,1.13964894,104490.0,104480.0,0.93158006]
[1748860825951,1.13964894,104490.0,104480.0,0.93058006]
[1748860827758,0.94833124,104490.0,104480.0,0.93058006]
[1748860827965,0.79944371,104490.0,104480.0,0.93058006]
[1748860829162,0.79944371,104490.0,104480.0,0.96408006]
[1748860829363,0.79944371,104490.0,104480.0,0.96508006]
[1748860829563,0.79944371,104490.0,104480.0,0.96608006]
[1748860831467,0.07784371,104490.0,104480.0,0.97448006]
[1748860832959,0.07784371,104490.0,104480.0,0.96608006]
[1748860833566,0.07784371,104490.0,104480.0,0.97436006]
[1748860833864,0.07784371,104490.0,104480.0,0.96596006]
[1748860834969,0.62996141,104490.0,104480.0,0.78578957]
[1748860835168,0.62996141,104490.0,104480.0,0.33734957]
[1748860835467,0.62996141,104490.0,104480.0,0.78578957]
[1748860835669,0.62996141,104490.0,104480.0,0.78558957]
[1748860835869,0.62996141,104490.0,104480.0,0.78578957]
[1748860836272,0.62996141,104490.0,104480.0,0.78478957]
[1748860836569,0.62996141,104490.0,104480.0,0.78378957]
[1748860837172,0.62996141,104490.0,104480.0,0.93042006]
[1748860838372,0.43864371,104490.0,104480.0,0.93042006]
[1748860838669,0.58753124,104490.0,104480.0,0.93042006]
[1748860840572,0.43864371,104490.0,104480.0,0.93042006]
[1748860843967,0.58753124,104490.0,104480.0,0.93042006]
[1748860844871,0.58753124,104490.0,104480.0,2.01622006]
[1748860845868,0.22673124,104490.0,104480.0,2.01622006]
[1748860846270,0.07784371,104490.0,104480.0,2.01622006]
[1748860846876,0.43864371,104490.0,104480.0,2.01622006]
[1748860847770,0.43864371,104490.0,104480.0,2.01722006]
[1748860848083,0.43864371,104490.0,104480.0,2.01822006]
[1748860848473,0.58753124,104490.0,104480.0,2.01822006]
[1748860852380,0.22673124,104490.0,104480.0,2.01822006]
[1748860852882,0.58753124,104490.0,104480.0,2.01822006]
[1748860853083,0.22673124,104490.0,104480.0,2.04982006]
[1748860853286,0.58753124,104490.0,104480.0,2.04982006]
[1748860853979,0.43864371,104490.0,104480.0,1.90318957]
[1748860854183,0.43864371,104490.0,104480.0,2.04982006]
[1748860855086,0.07784371,104490.0,104480.0,2.2462475]
[1748860855379,0.07784371,104490.0,104480.0,2.10611701]
[1748860856787,0.07784371,104490.0,104480.0,2.05632006]
[1748860857082,0.07784371,104490.0,104480.0,2.09910047]
[1748860857486,0.07784371,104490.0,104480.0,2.09930047]
[1748860857885,0.07784371,104490.0,104480.0,1.92106998]
[1748860858075,0.07784371,104490.0,104480.0,2.01790006]
[1748860858981,0.07784371,104490.0,104480.0,2.01690006]
[1748860859585,0.07784371,104490.0,104480.0,2.01686006]
[1748860859783,0.07784371,104490.0,104480.0,2.02686006]
[1748860859983,0.07784371,104490.0,104480.0,2.02586006]
[1748860860692,0.07784371,104490.0,104480.0,2.01586006]
[1748860861184,0.07784371,104490.0,104480.0,2.01566006]
[1748860861480,0.07784371,104490.0,104480.0,2.01586006]
[1748860863985,0.22673124,104490.0,104480.0,2.01586006]
[1748860867482,0.22673124,104490.0,104480.0,1.46062006]
[1748860867684,0.07784371,104490.0,104480.0,2.01526006]
[1748860870192,0.07784371,104490.0,104480.0,2.0650704]
[1748860870389,0.07784371,104490.0,104480.0,2.0966704]
[1748860871391,0.07784371,104490.0,104480.0,2.24325469]
[1748860871984,0.07784371,104490.0,104480.0,2.19344371]
[1748860872586,0.07784371,104490.0,104480.0,2.19444371]
[1748860873597,0.07784371,104490.0,104480.0,2.19544371]
[1748860875193,1e-08,104490.0,104480.0,2.70285078]
[1748860875399,1e-08,104490.0,104480.0,2.79845328]
[1748860875899,0.18398753,104500.0,104480.0,2.79845328]
[1748860875900,0.0351,104500.0,104490.0,0.1913176]
[1748860876087,0.0351,104500.0,104490.0,0.37532467]
[1748860876989,0.0351,104500.0,104490.0,0.52193174]
[1748860877191,0.0351,104500.0,104490.0,0.5884878]
[1748860878099,0.0351,104500.0,104490.0,0.6028278]
[1748860878490,0.0696,104500.0,104490.0,0.6028278]
[1748860878692,0.0696,104500.0,104490.0,0.6058278]
[1748860879097,0.0696,104500.0,104490.0,0.60579147]
[1748860879693,0.0696,104500.0,104490.0,0.60879147]
[1748860879893,0.0696,104500.0,104490.0,0.81314147]
[1748860880097,0.39454371,104510.0,104490.0,0.81314147]
[1748860880098,0.39454371,104510.0,104500.0,0.33784992]
[1748860880303,0.39454371,104510.0,104500.0,0.96228992]
[1748860880690,0.03374371,104510.0,104500.0,0.96228992]
[1748860880894,0.03374371,104510.0,104500.0,1.32308992]
[1748860881295,0.03374371,104510.0,104500.0,0.96228992]
[1748860881508,0.03374371,104510.0,104500.0,1.32308992]
[1748860881702,0.03374371,104510.0,104500.0,1.32408992]
[1748860881907,0.03374371,104510.0,104500.0,1.32508992]
[1748860883308,0.10094371,104510.0,104500.0,1.32508992]
[1748860888003,0.10094371,104510.0,104500.0,1.36058992]
[1748860889908,0.10094371,104510.0,104500.0,1.2140393]
[1748860890109,0.10094371,104510.0,104500.0,1.36058992]
[1748860890810,0.10094371,104510.0,104500.0,1.36038992]
[1748860895224,0.10094371,104510.0,104500.0,1.37472992]
[1748860895815,0.10094371,104510.0,104500.0,1.38907992]
[1748860899223,0.10094371,104510.0,104500.0,1.5356337]
[1748860900919,0.10094371,104510.0,104500.0,1.2425293]
[1748860901227,0.10094371,104510.0,104500.0,1.5356337]
[1748860903620,0.24983124,104510.0,104500.0,1.5356337]
[1748860904222,0.10094371,104510.0,104500.0,1.5356337]
[1748860905536,0.10094371,104510.0,104500.0,1.6821859]
[1748860906324,0.10094371,104510.0,104500.0,1.5356337]
[1748860906626,0.10094371,104510.0,104500.0,1.5353537]
[1748860906925,0.10094371,104510.0,104500.0,1.58512629]
[1748860907125,0.10094371,104510.0,104500.0,1.73167849]
[1748860907325,0.10094371,104510.0,104500.0,1.58512629]
[1748860907726,0.10094371,104510.0,104500.0,1.73167849]
[1748860909339,0.10094371,104510.0,104500.0,1.28459849]
[1748860909635,0.10094371,104510.0,104500.0,1.73159849]
[1748860910336,0.10094371,104510.0,104500.0,1.58504629]
[1748860910833,0.46174371,104510.0,104500.0,0.48415031]
[1748860911036,0.65302471,104510.0,104500.0,0.3290693]
[1748860911223,0.79957691,104510.0,104500.0,0.37857176]
[1748860911429,0.79957691,104510.0,104500.0,0.7757893]
[1748860911630,0.94846444,104510.0,104500.0,0.9221415]
[1748860911835,0.94846444,104510.0,104500.0,0.9223415]
[1748860912436,0.94846444,104510.0,104500.0,0.9223015]
[1748860912626,0.95046444,104510.0,104500.0,0.9203015]
[1748860912827,0.95246444,104510.0,104500.0,0.9203015]
[1748860913336,0.95246444,104510.0,104500.0,0.9203415]
[1748860916147,0.65702471,104510.0,104500.0,0.9203415]
[1748860916333,0.65702471,104510.0,104500.0,0.9203015]
[1748860919244,0.80357691,104510.0,104500.0,0.9203015]
[1748860920445,0.65702471,104510.0,104500.0,0.9203015]
[1748860921248,0.80591224,104510.0,104500.0,0.9203015]
[1748860922447,0.95246444,104510.0,104500.0,0.9203015]
[1748860922954,0.95146444,104510.0,104500.0,0.9203015]
[1748860923253,0.94946444,104510.0,104500.0,0.9203015]
[1748860923453,0.95046444,104510.0,104500.0,0.9203015]
[1748860924655,0.80391224,104510.0,104500.0,0.9203015]
[1748860927046,0.44311224,104510.0,104500.0,0.9203015]
[1748860927251,0.80391224,104510.0,104500.0,0.9203015]
[1748860930653,0.80391224,104510.0,104500.0,0.4733815]
[1748860930855,0.65502471,104510.0,104500.0,0.9201015]
[1748860933460,0.80391224,104510.0,104500.0,0.9201015]
[1748860933955,0.80391224,104510.0,104500.0,0.4733815]
[1748860934256,0.95046444,104510.0,104500.0,0.9200615]
[1748860935452,0.80157691,104510.0,104500.0,0.9200215]
[1748860935660,0.80157691,104510.0,104500.0,0.9198215]
[1748860935857,0.95047399,104510.0,104500.0,0.9200215]
[1748860936666,0.80157691,104510.0,104500.0,0.9200215]
[1748860938063,0.80157691,104510.0,104500.0,0.9197015]
[1748860943371,0.95074778,104510.0,104500.0,0.9197015]
[1748860946765,0.95074778,104510.0,104500.0,0.91961566]
[1748860949068,0.95074778,104510.0,104500.0,0.22010346]
[1748860949271,0.80157691,104510.0,104500.0,0.58156416]
[1748860949574,0.80157691,104510.0,104500.0,0.77266366]
[1748860949770,0.80157691,104510.0,104500.0,0.77286366]
[1748860953374,1.16237691,104510.0,104500.0,0.77286366]
[1748860954264,1.16237691,104510.0,104500.0,0.22010366]
[1748860954471,1.16237691,104510.0,104500.0,0.77278366]
[1748860954669,1.01582471,104510.0,104500.0,0.75823366]
[1748860954870,1.16237691,104510.0,104500.0,0.75843366]
[1748860959782,1.37094185,104510.0,104500.0,0.75843366]
[1748860961084,1.37094185,104510.0,104500.0,0.31211366]
[1748860961385,1.37094185,104510.0,104500.0,0.75831366]
[1748860961774,1.37094185,104510.0,104500.0,0.75803366]
[1748860965682,1.37094185,104510.0,104500.0,0.90458586]
[1748860966274,1.22438965,104510.0,104500.0,0.90458586]
[1748860966484,1.37094185,104510.0,104500.0,0.90458586]
[1748860967886,1.37094185,104510.0,104500.0,0.75803366]
[1748860972196,0.64934185,104510.0,104500.0,0.75803366]
[1748860972397,1.37094185,104510.0,104500.0,0.75803366]
[1748860972898,0.64934185,104510.0,104500.0,0.75803366]
[1748860973094,1.37094185,104510.0,104500.0,0.75803366]
[1748860973494,1.37094185,104510.0,104500.0,0.79243366]
[1748860974601,1.37094185,104510.0,104500.0,0.93898586]
[1748860974797,1.37094185,104510.0,104500.0,0.97558586]
[1748860976600,1.22438965,104510.0,104500.0,1.12213806]
[1748860976787,0.99950865,104510.0,104500.0,1.15553806]
[1748860976993,0.9064444,104510.0,104500.0,1.15553806]
[1748860977193,0.8728444,104510.0,104500.0,1.15553806]
[1748860977392,1.0641257,104510.0,104500.0,1.15553806]
[1748860980097,0.7033257,104510.0,104500.0,1.15553806]
[1748860980495,0.7033257,104510.0,104500.0,0.86243366]
[1748860980700,0.7033257,104510.0,104500.0,1.15553806]
[1748860981406,0.8498779,104510.0,104500.0,1.15553806]
[1748860981607,0.9210779,104510.0,104500.0,1.00898586]
[1748860981791,0.9564779,104510.0,104500.0,1.00898586]
[1748860983699,0.95631837,104510.0,104500.0,1.00898586]
[1748860984295,0.95631837,104510.0,104500.0,0.41623366]
[1748860984504,0.95631837,104510.0,104500.0,0.86203366]
[1748860984700,0.95631837,104510.0,104500.0,1.00838586]
[1748860984909,0.95631837,104510.0,104500.0,1.00858586]
[1748860985404,0.80976617,104510.0,104500.0,1.00858586]
[1748860985603,0.95631837,104510.0,104500.0,1.00858586]
[1748860986113,0.59551837,104510.0,104500.0,1.00858586]
[1748860986304,0.95631837,104510.0,104500.0,1.00858586]
[1748860991202,0.95631837,104510.0,104500.0,1.15513806]
[1748860991403,0.76503707,104510.0,104500.0,1.15513806]
[1748860991603,0.80976617,104510.0,104500.0,1.15513806]
[1748860992916,0.80976617,104510.0,104500.0,1.00858586]
[1748860993213,0.95631837,104510.0,104500.0,1.00858586]
[1748860993606,0.80737721,104510.0,104500.0,1.00858586]
[1748860995311,0.00214371,104510.0,104500.0,1.15513806]
[1748860996514,0.00114371,104510.0,104500.0,1.15613806]
[1748860996916,0.00014371,104510.0,104500.0,1.15613806]
[1748860997226,0.00014371,104510.0,104500.0,1.15713806]
[1748860997605,0.55222491,104510.0,104500.0,1.15661806]
[1748860997820,0.65642491,104510.0,104500.0,0.60525806]
[1748860998117,0.65642491,104510.0,104500.0,1.15641806]
[1748860998315,0.46514371,104510.0,104500.0,0.61940806]
[1748860998511,0.65642491,104510.0,104500.0,1.13736806]
[1748860998816,0.46514371,104510.0,104500.0,1.13756806]
[1748860999224,0.65642491,104510.0,104500.0,1.17082806]
[1748861000115,0.46514371,104510.0,104500.0,1.17082806]
[1748861000310,0.65642491,104510.0,104500.0,1.17082806]
[1748861001713,0.46514371,104510.0,104500.0,1.17082806]
[1748861004117,0.10434371,104510.0,104500.0,1.17082806]
[1748861004318,0.46514371,104510.0,104500.0,1.17082806]
[1748861007022,0.43054371,104510.0,104500.0,1.17082806]
[1748861007217,0.06974371,104510.0,104500.0,1.17082806]
[1748861007410,0.06974371,104510.0,104500.0,1.17070806]
[1748861007614,0.10644371,104510.0,104500.0,1.17070806]
[1748861011618,0.80507721,104510.0,104500.0,0.22210366]
[1748861011914,0.80507721,104510.0,104500.0,0.13660416]
[1748861012118,0.95401837,104510.0,104500.0,0.77302376]
[1748861012327,0.95401837,104510.0,104500.0,0.77322376]
[1748861012527,0.95401837,104510.0,104500.0,0.32790376]
[1748861012722,0.95401837,104510.0,104500.0,0.91977596]
[1748861013230,0.95406289,104510.0,104500.0,0.77322376]
[1748861015029,0.95406289,104510.0,104500.0,0.22210376]
[1748861015329,0.80746617,104510.0,104500.0,0.77318376]
[1748861017225,0.80746617,104510.0,104500.0,0.91978048]
[1748861018922,0.80746617,104510.0,104500.0,0.90543048]
[1748861020622,1.16826617,104510.0,104500.0,0.90543048]
[1748861021322,1.16826617,104510.0,104500.0,0.75883376]
[1748861022231,1.16826617,104510.0,104500.0,0.77318376]
[1748861023935,1.01932501,104510.0,104500.0,0.77318376]
[1748861024833,1.16592173,104510.0,104500.0,0.77318376]
[1748861026942,1.16592173,104510.0,104500.0,0.77302376]
[1748861032447,1.31472735,104510.0,104500.0,0.77302376]
[1748861035244,1.31471525,104510.0,104500.0,0.91960838]
[1748861036946,1.31471525,104510.0,104500.0,0.47448838]
[1748861037153,1.31471525,104510.0,104500.0,0.91948838]
[1748861037849,1.31471525,104510.0,104500.0,0.77290376]
[1748861038751,1.16590963,104510.0,104500.0,0.77290376]
[1748861039642,1.31471525,104510.0,104500.0,0.77290376]
[1748861042043,1.31471525,104510.0,104500.0,0.22210376]
[1748861042237,1.31471525,104510.0,104500.0,0.77254376]
[1748861042948,1.46129987,104510.0,104490.0,0.23927401]
[1748861043254,1.09837376,104500.0,104490.0,0.19166091]
[1748861043551,1.09837376,104500.0,104490.0,0.55054371]
[1748861043746,1.09837376,104500.0,104490.0,0.55074371]
[1748861043946,1.09837376,104500.0,104490.0,0.74206091]
[1748861044156,1.09837376,104500.0,104490.0,0.74306091]
[1748861044459,1.09837376,104500.0,104490.0,0.55174371]
[1748861044745,1.09837376,104500.0,104490.0,0.74406091]
[1748861044951,0.94956814,104500.0,104490.0,0.74406091]
[1748861045147,0.94956814,104500.0,104490.0,0.75841091]
[1748861045346,0.94956814,104500.0,104490.0,0.56705371]
[1748861045539,0.94956814,104500.0,104490.0,0.12121371]
[1748861045540,1.15813308,104500.0,104490.0,0.12121371]
[1748861045745,1.15813308,104500.0,104490.0,0.56789371]
[1748861045746,0.94956814,104500.0,104490.0,0.56789371]
[1748861045946,0.94956814,104500.0,104490.0,0.01769371]
[1748861046248,1.35373127,104500.0,104490.0,0.01769371]
[1748861046446,1.35373127,104500.0,104490.0,0.01569371]
[1748861046647,1.35373127,104500.0,104490.0,0.01549371]